fUST/lending_fUST_20240819
["ID","MTS","AMOUNT","RATE_DAILY","PERIOD"]
[335278138,1724064671094,-502.85,0.00017808,2]
[335278139,1724064671103,-500.0,0.00017808,2]
[335278140,1724064671113,-500.0,0.00017808,2]
[335278141,1724064671123,-530.34,0.00017808,2]
[335278142,1724064671133,-704.69,0.00017808,2]
[335278143,1724064671144,-883.26,0.00017808,2]
[335278144,1724064671154,-652.07,0.00017808,2]
[335278145,1724064671164,-613.05,0.00017808,2]
[335278146,1724064671175,-500.0,0.00017808,2]
[335278147,1724064671186,-500.0,0.00017808,2]
[335278148,1724064671196,-500.0,0.00017808,2]
[335278149,1724064671207,-644.74,0.00017808,2]
[335278150,1724064671217,-500.0,0.00017808,2]
[335278151,1724064671227,-500.0,0.00017808,2]
[335278152,1724064671238,-500.0,0.00017808,2]
[335278153,1724064671249,-500.0,0.00017808,2]
[335278154,1724064671260,-500.0,0.00017808,2]
[335278155,1724064671270,-500.0,0.00017808,2]
[335278156,1724064671280,-500.0,0.00017808,2]
[335278157,1724064671290,-500.0,0.00017808,2]
[335278158,1724064671302,-500.0,0.00017808,2]
[335278159,1724064671312,-627.32,0.00017808,2]
[335278160,1724064671322,-768.77,0.00017808,2]
[335278161,1724064671333,-1030.7,0.00017808,2]
[335278162,1724064671348,-751.5,0.00017808,2]
[335278163,1724064671357,-500.0,0.00017808,2]
[335278164,1724064671367,-669.42,0.00017808,2]
[335278165,1724064671376,-563.42,0.00017808,2]
[335278166,1724064671386,-500.0,0.00017808,2]
[335278167,1724064671395,-500.0,0.00017808,2]
[335278168,1724064671404,-563.05,0.00017808,2]
[335278169,1724064671414,-500.0,0.00017808,2]
[335278170,1724064671423,-500.0,0.00017808,2]
[335278171,1724064671432,-500.0,0.00017808,2]
[335278172,1724064671441,-500.0,0.00017808,2]
[335278173,1724064671450,-1159.42,0.00017808,2]
[335278174,1724064671460,-1058.32,0.00017808,2]
[335278175,1724064671469,-500.0,0.00017808,2]
[335278176,1724064671482,-500.0,0.00017808,2]
[335278177,1724064671492,-835.22,0.00017808,2]
[335278178,1724064671501,-1036.0,0.00017808,2]
[335278179,1724064671510,-500.0,0.00017808,2]
[335278180,1724064671520,-500.0,0.00017808,2]
[335278181,1724064671529,-500.0,0.00017808,2]
[335278182,1724064671539,-1629.15,0.00017808,2]
[335278183,1724064671548,-874.96,0.00017808,2]
[335278184,1724064671558,-679.46,0.00017808,2]
[335278185,1724064671567,-714.72,0.00017808,2]
[335278186,1724064671576,-650.75,0.00017808,2]
[335278187,1724064671585,-2792.23,0.00017808,2]
[335278188,1724064671595,-500.0,0.00017808,2]
[335278189,1724064671605,-500.0,0.00017808,2]
[335278190,1724064671614,-1304.87,0.00017808,2]
[335278191,1724064671623,-685.38,0.00017808,2]
[335278192,1724064671633,-999.6,0.00017808,2]
[335278193,1724064671642,-547.37,0.00017808,2]
[335278194,1724064671652,-500.0,0.00017808,2]
[335278195,1724064671662,-625.23,0.00017808,2]
[335278196,1724064671671,-500.0,0.00017808,2]
[335278197,1724064671681,-500.0,0.00017808,2]
[335278198,1724064671690,-500.0,0.00017808,2]
[335278199,1724064671700,-1241.89,0.00017808,2]
[335278200,1724064671709,-545.07,0.00017808,2]
[335278201,1724064671718,-500.0,0.00017808,2]
[335278202,1724064671728,-500.0,0.00017808,2]
[335278203,1724064671737,-500.0,0.00017808,2]
[335278204,1724064671749,-500.0,0.00017808,2]
[335278205,1724064671759,-200.0,0.00017808,2]
[335278206,1724064671768,-283.94096111,0.00017808,2]
[335278207,1724064671777,-1810.25,0.00017808,2]
[335278208,1724064671787,-1703.86,0.00017808,2]
[335278209,1724064671797,-548.12,0.00017808,2]
[335278210,1724064671805,-1465.02,0.00017808,2]
[335278211,1724064671814,-500.0,0.00017808,2]
[335278212,1724064671826,-500.0,0.00017808,2]
[335278213,1724064671836,-500.0,0.00017808,2]
[335278214,1724064671845,-500.0,0.00017808,2]
[335278215,1724064671854,-810.71,0.00017808,2]
[335278216,1724064671864,-2823.37,0.00017808,2]
[335278217,1724064671873,-500.0,0.00017808,2]
[335278218,1724064671882,-500.0,0.00017808,2]
[335278219,1724064671892,-500.0,0.00017808,2]
[335278220,1724064671901,-500.0,0.00017808,2]
[335278221,1724064671911,-1950.34,0.00017808,2]
[335278222,1724064671921,-766.64,0.00017808,2]
[335278223,1724064671930,-1677.1,0.00017808,2]
[335278224,1724064671940,-611.4,0.00017808,2]
[335278225,1724064671949,-628.62,0.00017808,2]
[335278226,1724064671960,-500.0,0.00017808,2]
[335278227,1724064671970,-531.03,0.00017808,2]
[335278228,1724064671982,-500.0,0.00017808,2]
[335278229,1724064671993,-500.0,0.00017808,2]
[335278230,1724064672004,-1530.73,0.00017808,2]
[335278231,1724064672013,-754.52,0.00017808,2]
[335278232,1724064672024,-575.88,0.00017808,2]
[335278233,1724064672035,-955.98,0.00017808,2]
[335278234,1724064672044,-500.0,0.00017808,2]
[335278235,1724064672055,-574.44,0.00017808,2]
[335278236,1724064672065,-731.1,0.00017808,2]
[335278237,1724064672077,-500.0,0.00017808,2]
[335278238,1724064672087,-6498.62,0.00017808,2]
[335278239,1724064672098,-500.0,0.00017808,2]
[335278240,1724064672187,-500.0,0.00017808,2]
[335278241,1724064672198,-6412.2,0.00017808,2]
[335278242,1724064672209,-504.35231615,0.00017808,2]
[335278243,1724064672220,-500.0,0.00017808,2]
[335278244,1724064672229,-500.0,0.00017808,2]
[335278245,1724064672241,-1017.23,0.00017808,2]
[335278246,1724064672253,-500.0,0.00017808,2]
[335278247,1724064672264,-500.0,0.00017808,2]
[335278248,1724064672274,-1833.35,0.00017808,2]
[335278249,1724064672285,-500.0,0.00017808,2]
[335278250,1724064672297,-551.2,0.00017808,2]
[335278251,1724064672308,-500.0,0.00017808,2]
[335278252,1724064672318,-500.0,0.00017808,2]
[335278253,1724064672329,-500.0,0.00017808,2]
[335278254,1724064672340,-866.32,0.00017808,2]
[335278255,1724064672351,-1076.73,0.00017808,2]
[335278256,1724064672361,-552.95,0.00017808,2]
[335278257,1724064672372,-1738.28,0.00017808,2]
[335278258,1724064672381,-591.99,0.00017808,2]
[335278259,1724064672392,-556.23,0.00017808,2]
[335278260,1724064672402,-1070.93,0.00017808,2]
[335278261,1724064672413,-500.0,0.00017808,2]
[335278262,1724064672425,-500.0,0.00017808,2]
[335278263,1724064672436,-500.0,0.00017808,2]
[335278264,1724064672446,-1404.09,0.00017808,2]
[335278265,1724064672458,-527.24,0.00017808,2]
[335278266,1724064672469,-500.0,0.00017808,2]
[335278267,1724064672480,-4166.87,0.00017808,2]
[335278268,1724064672489,-549.76,0.00017808,2]
[335278269,1724064672499,-952.17,0.00017808,2]
[335278270,1724064672508,-523.47,0.00017808,2]
[335278271,1724064672518,-19615.05,0.00017808,2]
[335278272,1724064672528,-500.0,0.00017808,2]
[335278273,1724064672537,-435.40988073,0.00017808,2]
[335278274,1724064672547,-1409.16,0.00017808,2]
[335278275,1724064672556,-967.54,0.00017808,2]
[335278276,1724064672565,-5418.3,0.00017808,2]
[335278277,1724064672575,-500.0,0.00017808,2]
[335278278,1724064672585,-500.0,0.00017808,2]
[335278279,1724064672595,-500.0,0.00017808,2]
[335278280,1724064672605,-500.0,0.00017808,2]
[335278281,1724064672615,-3020.65,0.00017808,2]
[335278282,1724064672625,-2059.25,0.00017808,2]
[335278283,1724064672635,-6249.43,0.00017808,2]
[335278284,1724064672647,-1358.47,0.00017808,2]
[335278285,1724064672657,-1833.6,0.00017808,2]
[335278286,1724064672667,-695.24,0.00017808,2]
[335278287,1724064672677,-1406.0,0.00017808,2]
[335278288,1724064672688,-521.48,0.00017808,2]
[335278289,1724064672698,-1476.87,0.00017808,2]
[335278290,1724064672708,-1523.28,0.00017808,2]
[335278291,1724064672719,-500.0,0.00017808,2]
[335278292,1724064672730,-2266.85,0.00017808,2]
[335278293,1724064672742,-500.0,0.00017808,2]
[335278294,1724064672757,-500.0,0.00017808,2]
[335278295,1724064672768,-1215.95,0.00017808,2]
[335278296,1724064672779,-734.72,0.00017808,2]
[335278297,1724064672792,-500.0,0.00017808,2]
[335278298,1724064672801,-729.24,0.00017808,2]
[335278299,1724064672811,-2145.28,0.00017808,2]
[335278300,1724064672821,-500.0,0.00017808,2]
[335278301,1724064672834,-1474.66,0.00017808,2]
[335278302,1724064672844,-500.0,0.00017808,2]
[335278303,1724064672853,-612.11,0.00017808,2]
[335278304,1724064672863,-2313.4,0.00017808,2]
[335278305,1724064672872,-1177.26,0.00017808,2]
[335278306,1724064672881,-500.0,0.00017808,2]
[335278307,1724064672890,-573.54,0.00017808,2]
[335278308,1724064672899,-500.0,0.00017808,2]
[335278309,1724064672910,-500.0,0.00017808,2]
[335278310,1724064672921,-500.0,0.00017808,2]
[335278311,1724064672931,-560.41,0.00017808,2]
[335278312,1724064672944,-2216.78,0.00017808,2]
[335278313,1724064672956,-500.0,0.00017808,2]
[335278314,1724064672966,-1514.7,0.00017808,2]
[335278315,1724064672978,-835.68,0.00017808,2]
[335278316,1724064672990,-500.0,0.00017808,2]
[335278317,1724064673001,-3105.81,0.00017808,2]
[335278318,1724064673010,-500.0,0.00017808,2]
[335278319,1724064673019,-595.88,0.00017808,2]
[335278320,1724064673030,-1084.05,0.00017808,2]
[335278321,1724064673039,-500.0,0.00017808,2]
[335278322,1724064673050,-500.0,0.00017808,2]
[335278323,1724064673059,-3685.64,0.00017808,2]
[335278324,1724064673068,-2913.53,0.00017808,2]
[335278325,1724064673078,-597.54,0.00017808,2]
[335278326,1724064673088,-1064.67,0.00017808,2]
[335278327,1724064673098,-1144.09,0.00017808,2]
[335278328,1724064673108,-500.0,0.00017808,2]
[335278329,1724064673117,-1364.06,0.00017808,2]
[335278330,1724064673127,-500.0,0.00017808,2]
[335278331,1724064673136,-500.0,0.00017808,2]
[335278332,1724064673146,-250.3411862,0.00017821,2]
[335278333,1724064673156,-10341.66689399,0.00017898,2]
[335278334,1724064673166,-1631.96854357,0.000179,2]
[335278335,1724064673177,-1631.96854355,0.000179,2]
[335278336,1724064673186,-1631.96854355,0.000179,2]
[335278337,1724064673196,-1631.96854355,0.000179,2]
[335278338,1724064673207,-182.5,0.00018,2]
[335278339,1724064673219,-1045.66095398,0.00018,2]
[335278340,1724064673229,-1005.322392,0.00018,2]
[335278341,1724064673239,-535.77598732,0.00018082,2]
[335278342,1724064673249,-999.1,0.00018082,2]
[335278343,1724064673258,-500.0,0.00018082,2]
[335278344,1724064673269,-500.0,0.00018082,2]
[335278345,1724064673279,-635.16,0.00018082,2]
[335278346,1724064673289,-500.0,0.00018082,2]
[335278347,1724064673299,-591.86,0.00018082,2]
[335278348,1724064673308,-500.0,0.00018082,2]
[335278349,1724064673317,-519.72470302,0.00018082,2]
[335278350,1724064673327,-500.0,0.00018082,2]
[335278351,1724064673336,-566.51,0.00018082,2]
[335278352,1724064673350,-500.0,0.00018082,2]
[335278353,1724064673359,-500.0,0.00018082,2]
[335278354,1724064673369,-504.13869695,0.00018082,2]
[335278355,1724064673380,-500.0,0.00018082,2]
[335278356,1724064673390,-500.0,0.00018082,2]
[335278357,1724064673400,-500.0,0.00018082,2]
[335278358,1724064673411,-500.0,0.00018082,2]
[335278359,1724064673421,-500.0,0.00018082,2]
[335278360,1724064673431,-604.56,0.00018082,2]
[335278361,1724064673442,-455.83274789,0.00018082,2]
[335278362,1724064673453,-1036.27,0.00018082,2]
[335278363,1724064673465,-573.20883116,0.00018082,2]
[335278364,1724064673474,-876.01,0.00018082,2]
[335278365,1724064673485,-500.0,0.00018082,2]
[335278366,1724064673495,-920.14,0.00018082,2]
[335278367,1724064673505,-500.0,0.00018082,2]
[335278368,1724064673514,-924.92,0.00018082,2]
[335278369,1724064673524,-500.0,0.00018082,2]
[335278370,1724064673533,-500.0,0.00018082,2]
[335278371,1724064673542,-500.0,0.00018082,2]
[335278372,1724064673552,-500.0,0.00018082,2]
[335278373,1724064673561,-884.77,0.00018082,2]
[335278374,1724064673572,-1525.26,0.00018082,2]
[335278375,1724064673583,-500.0,0.00018082,2]
[335278376,1724064673597,-1240.07,0.00018082,2]
[335278377,1724064673608,-500.0,0.00018082,2]
[335278378,1724064673619,-500.0,0.00018082,2]
[335278379,1724064673630,-531.9,0.00018082,2]
[335278380,1724064673641,-500.0,0.00018082,2]
[335278381,1724064673652,-500.0,0.00018082,2]
[335278382,1724064673663,-500.0,0.00018082,2]
[335278383,1724064673673,-670.44,0.00018082,2]
[335278384,1724064673683,-2085.01,0.00018082,2]
[335278385,1724064673694,-500.0,0.00018082,2]
[335278386,1724064673705,-500.0,0.00018082,2]
[335278387,1724064673714,-320.34762276,0.00018082,2]
[335278388,1724064673723,-972.73,0.00018082,2]
[335278389,1724064673733,-608.01,0.00018082,2]
[335278390,1724064673744,-627.13,0.00018082,2]
[335278391,1724064673757,-549.6,0.00018082,2]
[335278392,1724064673767,-571.47,0.00018082,2]
[335278393,1724064673777,-500.0,0.00018082,2]
[335278394,1724064673786,-500.0,0.00018082,2]
[335278395,1724064673797,-509.54,0.00018082,2]
[335278396,1724064673808,-1192.27,0.00018082,2]
[335278397,1724064673818,-500.0,0.00018082,2]
[335278398,1724064673829,-500.0,0.00018082,2]
[335278399,1724064673839,-868.49,0.00018082,2]
[335278400,1724064673848,-500.0,0.00018082,2]
[335278401,1724064673858,-833.76,0.00018082,2]
[335278402,1724064673867,-500.0,0.00018082,2]
[335278403,1724064673877,-500.0,0.00018082,2]
[335278404,1724064673886,-541.44,0.00018082,2]
[335278405,1724064673895,-680.14,0.00018082,2]
[335278406,1724064673904,-677.35,0.00018082,2]
[335278407,1724064673914,-500.0,0.00018082,2]
[335278408,1724064673925,-1037.09,0.00018082,2]
[335278409,1724064673936,-764.95,0.00018082,2]
[335278410,1724064673946,-500.0,0.00018082,2]
[335278411,1724064673956,-3205.11,0.00018082,2]
[335278412,1724064673967,-629.33,0.00018082,2]
[335278413,1724064673977,-500.0,0.00018082,2]
[335278414,1724064673987,-500.0,0.00018082,2]
[335278415,1724064673997,-500.0,0.00018082,2]
[335278416,1724064674006,-618.15,0.00018082,2]
[335278417,1724064674016,-500.0,0.00018082,2]
[335278418,1724064674026,-788.89,0.00018082,2]
[335278419,1724064674035,-501.1,0.00018082,2]
[335278420,1724064674046,-500.0,0.00018082,2]
[335278421,1724064674057,-500.0,0.00018082,2]
[335278422,1724064674066,-868.42,0.00018082,2]
[335278423,1724064674079,-945.19,0.00018082,2]
[335278424,1724064674089,-500.0,0.00018082,2]
[335278425,1724064674099,-198.42017801,0.00018082,2]
[335278426,1724064674109,-924.86,0.00018082,2]
[335278427,1724064674119,-181.08334062,0.00018082,2]
[335278428,1724064674128,-1050.73,0.00018082,2]
[335278429,1724064674138,-571.61,0.00018082,2]
[335278430,1724064674147,-673.9,0.00018082,2]
[335278431,1724064674157,-819.39,0.00018082,2]
[335278432,1724064674167,-511.70807038,0.00018082,2]
[335278433,1724064674176,-513.12,0.00018082,2]
[335278434,1724064674186,-500.0,0.00018082,2]
[335278435,1724064674195,-500.0,0.00018082,2]
[335278436,1724064674205,-500.0,0.00018082,2]
[335278437,1724064674215,-1257.31,0.00018082,2]
[335278438,1724064674224,-651.1,0.00018082,2]
[335278439,1724064674233,-500.0,0.00018082,2]
[335278440,1724064674243,-800.57,0.00018082,2]
[335278441,1724064674252,-643.17,0.00018082,2]
[335278442,1724064674262,-500.0,0.00018082,2]
[335278443,1724064674271,-500.0,0.00018082,2]
[335278444,1724064674282,-891.67,0.00018082,2]
[335278445,1724064674291,-500.0,0.00018082,2]
[335278446,1724064674301,-734.44,0.00018082,2]
[335278447,1724064674311,-500.0,0.00018082,2]
[335278448,1724064674321,-500.0,0.00018082,2]
[335278449,1724064674330,-596.48,0.00018082,2]
[335278450,1724064674341,-991.23,0.00018082,2]
[335278451,1724064674437,-975.86,0.00018082,2]
[335278452,1724064674454,-500.0,0.00018082,2]
[335278453,1724064674464,-500.0,0.00018082,2]
[335278454,1724064674474,-1381.03,0.00018082,2]
[335278455,1724064674484,-500.0,0.00018082,2]
[335278456,1724064674494,-502.85,0.00018082,2]
[335278457,1724064674503,-500.0,0.00018082,2]
[335278458,1724064674513,-500.0,0.00018082,2]
[335278459,1724064674523,-530.34,0.00018082,2]
[335278460,1724064674532,-704.69,0.00018082,2]
[335278461,1724064674541,-883.26,0.00018082,2]
[335278462,1724064674551,-652.07,0.00018082,2]
[335278463,1724064674560,-613.05,0.00018082,2]
[335278464,1724064674569,-500.0,0.00018082,2]
[335278465,1724064674578,-500.0,0.00018082,2]
[335278466,1724064674588,-500.0,0.00018082,2]
[335278467,1724064674598,-644.74,0.00018082,2]
[335278468,1724064674607,-500.0,0.00018082,2]
[335278469,1724064674617,-500.0,0.00018082,2]
[335278470,1724064674626,-500.0,0.00018082,2]
[335278471,1724064674635,-500.0,0.00018082,2]
[335278472,1724064674644,-500.0,0.00018082,2]
[335278473,1724064674654,-500.0,0.00018082,2]
[335278474,1724064674663,-500.0,0.00018082,2]
[335278475,1724064674672,-500.0,0.00018082,2]
[335278476,1724064674682,-500.0,0.00018082,2]
[335278477,1724064674692,-627.32,0.00018082,2]
[335278478,1724064674701,-768.77,0.00018082,2]
[335278479,1724064674711,-1030.7,0.00018082,2]
[335278480,1724064674720,-751.5,0.00018082,2]
[335278481,1724064674729,-500.0,0.00018082,2]
[335278482,1724064674739,-669.42,0.00018082,2]
[335278483,1724064674753,-563.42,0.00018082,2]
[335278484,1724064674763,-500.0,0.00018082,2]
[335278485,1724064674772,-500.0,0.00018082,2]
[335278486,1724064674781,-563.05,0.00018082,2]
[335278487,1724064674791,-500.0,0.00018082,2]
[335278488,1724064674801,-500.0,0.00018082,2]
[335278489,1724064674810,-500.0,0.00018082,2]
[335278490,1724064674821,-500.0,0.00018082,2]
[335278491,1724064674831,-1159.42,0.00018082,2]
[335278492,1724064674841,-1058.32,0.00018082,2]
[335278493,1724064674851,-500.0,0.00018082,2]
[335278494,1724064674860,-500.0,0.00018082,2]
[335278495,1724064674869,-835.22,0.00018082,2]
[335278496,1724064674879,-1036.0,0.00018082,2]
[335278497,1724064674888,-500.0,0.00018082,2]
[335278498,1724064674897,-500.0,0.00018082,2]
[335278499,1724064674907,-500.0,0.00018082,2]
[335278500,1724064674916,-1629.15,0.00018082,2]
[335278501,1724064674926,-874.96,0.00018082,2]
[335278502,1724064674936,-679.46,0.00018082,2]
[335278503,1724064674973,-714.72,0.00018082,2]
[335278504,1724064674983,-650.75,0.00018082,2]
[335278505,1724064674994,-2792.23,0.00018082,2]
[335278506,1724064675004,-500.0,0.00018082,2]
[335278507,1724064675015,-500.0,0.00018082,2]
[335278508,1724064675025,-1304.87,0.00018082,2]
[335278509,1724064675035,-685.38,0.00018082,2]
[335278510,1724064675045,-999.6,0.00018082,2]
[335278511,1724064675056,-547.37,0.00018082,2]
[335278512,1724064675067,-500.0,0.00018082,2]
[335278513,1724064675077,-625.23,0.00018082,2]
[335278514,1724064675088,-500.0,0.00018082,2]
[335278515,1724064675097,-500.0,0.00018082,2]
[335278516,1724064675106,-500.0,0.00018082,2]
[335278517,1724064675116,-1241.89,0.00018082,2]
[335278518,1724064675126,-545.07,0.00018082,2]
[335278519,1724064675135,-500.0,0.00018082,2]
[335278520,1724064675145,-500.0,0.00018082,2]
[335278521,1724064675155,-500.0,0.00018082,2]
[335278522,1724064675165,-500.0,0.00018082,2]
[335278523,1724064675175,-200.0,0.00018082,2]
[335278524,1724064675185,-1810.25,0.00018082,2]
[335278525,1724064675195,-1703.86,0.00018082,2]
[335278526,1724064675205,-548.12,0.00018082,2]
[335278527,1724064675216,-1465.02,0.00018082,2]
[335278528,1724064675227,-500.0,0.00018082,2]
[335278529,1724064675237,-500.0,0.00018082,2]
[335278530,1724064675247,-500.0,0.00018082,2]
[335278531,1724064675257,-500.0,0.00018082,2]
[335278532,1724064675266,-810.71,0.00018082,2]
[335278533,1724064675275,-2823.37,0.00018082,2]
[335278534,1724064675285,-500.0,0.00018082,2]
[335278535,1724064675294,-500.0,0.00018082,2]
[335278536,1724064675304,-500.0,0.00018082,2]
[335278537,1724064675314,-500.0,0.00018082,2]
[335278538,1724064675325,-1950.34,0.00018082,2]
[335278539,1724064675335,-766.64,0.00018082,2]
[335278540,1724064675347,-1677.1,0.00018082,2]
[335278541,1724064675357,-611.4,0.00018082,2]
[335278542,1724064675367,-628.62,0.00018082,2]
[335278543,1724064675379,-500.0,0.00018082,2]
[335278544,1724064675390,-531.03,0.00018082,2]
[335278545,1724064675400,-500.0,0.00018082,2]
[335278546,1724064675411,-500.0,0.00018082,2]
[335278547,1724064675421,-1530.73,0.00018082,2]
[335278548,1724064675431,-754.52,0.00018082,2]
[335278549,1724064675441,-575.88,0.00018082,2]
[335278550,1724064675450,-955.98,0.00018082,2]
[335278551,1724064675459,-500.0,0.00018082,2]
[335278552,1724064675469,-574.44,0.00018082,2]
[335278553,1724064675481,-731.1,0.00018082,2]
[335278554,1724064675492,-500.0,0.00018082,2]
[335278555,1724064675504,-6498.62,0.00018082,2]
[335278556,1724064675514,-500.0,0.00018082,2]
[335278557,1724064675525,-500.0,0.00018082,2]
[335278558,1724064675536,-6412.2,0.00018082,2]
[335278559,1724064675546,-500.0,0.00018082,2]
[335278560,1724064675555,-500.0,0.00018082,2]
[335278561,1724064675564,-1017.23,0.00018082,2]
[335278562,1724064675574,-500.0,0.00018082,2]
[335278563,1724064675583,-500.0,0.00018082,2]
[335278564,1724064675596,-1833.35,0.00018082,2]
[335278565,1724064675606,-517.71103552,0.00018082,2]
[335278566,1724064675617,-551.2,0.00018082,2]
[335278567,1724064675626,-500.0,0.00018082,2]
[335278568,1724064675636,-500.0,0.00018082,2]
[335278569,1724064675645,-500.0,0.00018082,2]
[335278570,1724064675654,-866.32,0.00018082,2]
[335278571,1724064675664,-1076.73,0.00018082,2]
[335278572,1724064675674,-552.95,0.00018082,2]
[335278573,1724064675685,-1738.28,0.00018082,2]
[335278574,1724064675696,-591.99,0.00018082,2]
[335278575,1724064675707,-556.23,0.00018082,2]
[335278576,1724064675717,-1070.93,0.00018082,2]
[335278577,1724064675728,-500.0,0.00018082,2]
[335278578,1724064675739,-500.0,0.00018082,2]
[335278579,1724064675753,-500.0,0.00018082,2]
[335278580,1724064675763,-1404.09,0.00018082,2]
[335278581,1724064675774,-527.24,0.00018082,2]
[335278582,1724064675784,-500.0,0.00018082,2]
[335278583,1724064675795,-4166.87,0.00018082,2]
[335278584,1724064675804,-549.76,0.00018082,2]
[335278585,1724064675815,-952.17,0.00018082,2]
[335278586,1724064675828,-523.47,0.00018082,2]
[335278587,1724064675838,-19615.05,0.00018082,2]
[335278588,1724064675848,-500.0,0.00018082,2]
[335278589,1724064675858,-1409.16,0.00018082,2]
[335278590,1724064675868,-967.54,0.00018082,2]
[335278591,1724064675877,-5418.3,0.00018082,2]
[335278592,1724064675887,-500.0,0.00018082,2]
[335278593,1724064675897,-500.0,0.00018082,2]
[335278594,1724064675907,-500.0,0.00018082,2]
[335278595,1724064675916,-500.0,0.00018082,2]
[335278596,1724064675925,-3020.65,0.00018082,2]
[335278597,1724064675935,-2059.25,0.00018082,2]
[335278598,1724064675944,-6249.43,0.00018082,2]
[335278599,1724064675954,-1358.47,0.00018082,2]
[335278600,1724064675963,-1833.6,0.00018082,2]
[335278601,1724064675973,-695.24,0.00018082,2]
[335278602,1724064675982,-1406.0,0.00018082,2]
[335278603,1724064675992,-521.48,0.00018082,2]
[335278604,1724064676001,-1476.87,0.00018082,2]
[335278605,1724064676011,-1523.28,0.00018082,2]
[335278606,1724064676021,-500.0,0.00018082,2]
[335278607,1724064676030,-2266.85,0.00018082,2]
[335278608,1724064676040,-500.0,0.00018082,2]
[335278609,1724064676051,-500.0,0.00018082,2]
[335278610,1724064676062,-1215.95,0.00018082,2]
[335278611,1724064676073,-734.72,0.00018082,2]
[335278612,1724064676084,-500.0,0.00018082,2]
[335278613,1724064676095,-729.24,0.00018082,2]
[335278614,1724064676105,-2145.28,0.00018082,2]
[335278615,1724064676116,-500.0,0.00018082,2]
[335278616,1724064676127,-1474.66,0.00018082,2]
[335278617,1724064676136,-500.0,0.00018082,2]
[335278618,1724064676146,-612.11,0.00018082,2]
[335278619,1724064676155,-2313.4,0.00018082,2]
[335278620,1724064676165,-1177.26,0.00018082,2]
[335278621,1724064676177,-500.0,0.00018082,2]
[335278622,1724064676188,-573.54,0.00018082,2]
[335278623,1724064676197,-500.0,0.00018082,2]
[335278624,1724064676206,-500.0,0.00018082,2]
[335278625,1724064676215,-500.0,0.00018082,2]
[335278626,1724064676225,-560.41,0.00018082,2]
[335278627,1724064676234,-2216.78,0.00018082,2]
[335278628,1724064676243,-285.04649121,0.00018082,2]
[335278629,1724064676253,-1514.7,0.00018082,2]
[335278630,1724064676263,-835.68,0.00018082,2]
[335278631,1724064676273,-500.0,0.00018082,2]
[335278632,1724064676286,-3105.81,0.00018082,2]
[335278633,1724064676297,-500.0,0.00018082,2]
[335278634,1724064676306,-595.88,0.00018082,2]
[335278635,1724064676316,-1084.05,0.00018082,2]
[335278636,1724064676325,-421.06428813,0.00018082,2]
[335278637,1724064676335,-500.0,0.00018082,2]